[Event "44th Chess Olympiad Open 2022"]
[Site "Chennai"]
[Date "2022.08.03"]
[Round "6.8"]
[White "Horvath, Dominik"]
[Black "Jones, Gawain C B"]
[Result "1-0"]
[WhiteElo "2488"]
[BlackElo "2652"]
[Annotator "TA"]
[PlyCount "109"]
[EventDate "2022.??.??"]
[TimeControl "60"]

{[%evp 12,109,33,38,44,27,44,23,43,42,43,5,33,17,17,0,7,-71,-71,-71,-71,-71,
-64,-71,-63,-84,-82,-105,-105,-147,-105,-118,-138,-122,-84,-90,-52,-48,0,-72,0,
0,14,24,21,29,11,17,10,4,25,0,0,-39,-16,-105,-108,-108,-85,-124,0,0,0,0,21,0,
443,433,430,429,370,374,409,422,437,412,9025,5505,6974,5509,29972,29973,29973,
29974,29974,29972,29977,29978,29979,29980,29981,29980,29980,29981,29981,29982,
29982,29983,29982,29983]} 1. e4 {[%emt 0:00:01]} e5 {[%emt 0:00:32]} 2. Nf3 {
[%emt 0:00:04]} Nc6 {[%emt 0:00:07]} 3. Bb5 {[%emt 0:00:04]} a6 {[%emt 0:00:19]
} 4. Ba4 {[%emt 0:00:07]} Nf6 {[%emt 0:00:05]} 5. O-O {[%emt 0:00:04]} d6 {
[%emt 0:00:32]} 6. Re1 {[%emt 0:04:28]} Bd7 {[%emt 0:01:59]} 7. c3 {[%emt 0:00:
00]} g6 {[%emt 0:00:17] outshines the older 7...Be7. C66: Ruy Lopez: Steinitz
Defence.} 8. h3 {[%emt 0:00:13]} Bh6 $5 {[%emt 0:06:55] An interesting side
line.} 9. d4 {[%emt 0:00:54]} Bxc1 {[%emt 0:00:12] White has an edge.} 10. Qxc1
{[%emt 0:00:02] [#]} Qe7 $146 {[%emt 0:03:36]} ({Predecessor:} 10... O-O 11.
Qh6 exd4 12. Ng5 Ne7 13. Bc2 Nc6 14. f4 Re8 15. Bb3 Re7 16. e5 Qf8 {½-½ (27)
Malar,P (2010)-Potemri,S (2035) Slovakia 1998}) 11. b4 {[%emt 0:00:00]} Nh5 {
[%emt 0:08:31][%cal Yf6h5,Yh5f4,Yf4h3]} 12. Qh6 {[%emt 0:00:00]} f6 {[%emt 0:
07:04]} 13. Nbd2 {[%emt 0:00:46]} Nf4 {[%emt 0:08:58]} 14. g3 {[%emt 0:03:18]}
(14. Bxc6 $11 {keeps the balance.} bxc6 15. h4) 14... Nxh3+ $17 {[%emt 0:13:08]
} 15. Kg2 {[%emt 0:00:07]} Ng5 $1 {[%emt 0:00:26]} 16. Nxg5 {[%emt 0:06:11]}
fxg5 {[%emt 0:00:16]} 17. Bxc6 {[%emt 0:12:34]} Bxc6 {[%emt 0:00:00]} 18. a4 {
[%emt 0:00:18]} Qf6 {[%emt 0:05:25]} 19. b5 {[%emt 0:24:20]} Bd7 $1 {[%emt 0:
05:50]} 20. f3 {[%emt 0:08:55]} Rf8 {[%emt 0:09:38]} (20... exd4 21. bxa6 Rxa6
22. e5 dxe5 23. Ne4 $11) 21. bxa6 {[%emt 0:00:30]} (21. Qxh7 $2 Rh8 22. Qxh8+ (
22. dxe5 $2 dxe5 23. Qxh8+ Qxh8 $19) 22... Qxh8 $19) 21... Rxa6 {[%emt 0:00:34]
} 22. a5 {[%emt 0:00:11]} Rc6 {[%emt 0:03:20]} 23. Reb1 {[%emt 0:01:45]} Rf7 {
[%emt 0:09:36]} 24. Rxb7 {[%emt 0:10:06]} Rxc3 {[%emt 0:00:00]} (24... exd4 $15
{should be considered.} 25. a6 (25. Rb8+ Ke7 $17) 25... Rxa6 26. Rxa6 dxc3 27.
Ra8+ (27. Rxc7 cxd2 28. Ra8+ Ke7 $17) 27... Ke7) 25. Rb2 {[%emt 0:00:12]} (25.
Kg1 $1 $11 exd4 26. a6) 25... exd4 {[%emt 0:10:35]} ({Black should try} 25...
Rxf3 $17 26. Nxf3 Qxf3+ 27. Kh2 Qxe4 28. dxe5 (28. Qxg5 $2 Rf5 $19) 28... Bc6
29. exd6 (29. Qxg5 $2 Rf5 $19) 29... Qe3) 26. a6 $11 {[%emt 0:00:04] And now
a7 would win.} Ke7 {[%emt 0:01:56] Hoping for ...Re3.} (26... Rxf3 $5 27. Nxf3
Qxf3+ 28. Kh2 Qxe4 $11) 27. a7 {[%emt 0:00:04]} Bc6 {[%emt 0:00:04] White must
now prevent ...Ba8.} 28. a8=Q {[%emt 0:01:32] Dancing on a razor blade.} Bxa8 {
[%emt 0:00:05]} 29. Rxa8 {[%emt 0:00:03]} g4 {[%emt 0:00:52][%cal Rg4f3]} 30.
f4 {[%emt 0:01:01][%cal Ye4e5] e5! is the strong threat.} Re3 {[%emt 0:00:32]}
31. Nc4 {[%emt 0:04:07]} Rxe4 {[%emt 0:00:00]} 32. Rb7 {[%emt 0:00:54]} Ke6 {
[%emt 0:03:00]} 33. Re8+ {[%emt 0:01:18] [#]} (33. Kf2 $11 d3 34. Re8+ Re7 35.
Rxe7+ Qxe7 36. Ne3) 33... Re7 $1 $17 {[%emt 0:00:00]} 34. Rxe7+ {[%emt 0:02:39]
} Qxe7 {[%emt 0:00:00]} 35. Qh1 {[%emt 0:00:30] [#]} d3 {[%emt 0:01:38]} (35...
Qd7 $1 $17 {[%cal Rd7c6]} 36. Kf2 Qc6) 36. Qc1 $36 {[%emt 0:00:06] Black is
under pressure.} Re2+ {[%emt 0:00:38]} (36... Qe8 $5 37. Ne3 (37. Rxc7 $2 Re2+
38. Kg1 Qb5 $19) 37... c5 38. Rxh7 Qc6 $11) 37. Kf1 {[%emt 0:00:21] Strongly
threatening Ne3.} Kf5 {[%emt 0:00:28]} 38. Rxc7 {[%emt 0:01:03]} Re1+ {[%emt 0:
00:34] White leaves nothing to chance now.} (38... Qxc7 $11 {and Black stays
safe.} 39. Ne3+ Ke4 40. Qxc7 Kxe3) 39. Qxe1 $18 {[%emt 0:00:04]} Qxc7 {[%emt 0:
00:02]} 40. Ne3+ {[%emt 0:00:45]} ({Weaker is} 40. Qc3 Ke6 41. Qxd3 Qc6 $18)
40... Ke6 {[%emt 0:00:05]} 41. Nxg4+ {[%emt 0:30:18]} Kf7 {[%emt 0:03:48]} 42.
Nf2 {[%emt 0:00:00]} Qc2 {[%emt 0:02:21]} 43. Qd1 {[%emt 0:00:00]} Qxd1+ {
[%emt 0:00:00]} (43... Qc4 $142 44. Nxd3 h5) 44. Nxd1 {[%emt 0:00:00] Endgame
KN-KP} g5 {[%emt 0:00:05]} 45. Nf2 {[%emt 0:00:00]} gxf4 {[%emt 0:00:00]} 46.
gxf4 {[%emt 0:00:00] White mates.} Kf6 {[%emt 0:00:14]} 47. Nxd3 {[%emt 0:00:
00] KN-KPP} Kf5 {[%emt 0:00:03]} 48. Kf2 {[%emt 0:00:00]} d5 {[%emt 0:03:00]}
49. Kf3 {[%emt 0:00:00]} h5 {[%emt 0:00:24]} 50. Ne1 {[%emt 0:00:00]} Kg6 {
[%emt 0:00:56]} 51. Nc2 {[%emt 0:00:00]} Kf5 {[%emt 0:00:52]} 52. Nd4+ {
[%emt 0:00:00]} Kf6 {[%emt 0:00:08]} 53. Kg3 {[%emt 0:00:00]} Kf7 {[%emt 0:00:
20]} 54. Kh4 {[%emt 0:00:00]} Kg6 {[%emt 0:00:06]} 55. f5+ {[%emt 0:00:00]
Weighted Error Value: White=0.14 (very precise) /Black=0.42} 1-0

[Event "44th Chess Olympiad Open 2022"]
[Site "Chennai"]
[Date "2022.08.03"]
[Round "6.9"]
[White "Fressinet, Laurent"]
[Black "Bogner, Sebastian"]
[Result "*"]
[WhiteElo "2631"]
[BlackElo "2545"]
[Annotator "TA"]
[PlyCount "73"]
[EventDate "2022.??.??"]
[TimeControl "60"]

{[%evp 16,73,2,2,6,7,7,0,0,-8,29,45,36,46,47,37,38,34,61,54,49,50,66,66,54,53,
45,39,41,39,51,37,58,58,59,44,56,22,30,27,41,24,31,31,28,19,62,56,164,0,39,32,
44,36,53,28,28,15,21,15]} 1. d4 {[%emt 0:00:10]} Nf6 {[%emt 0:00:15]} 2. c4 {
[%emt 0:00:10]} e6 {[%emt 0:00:05]} 3. g3 {[%emt 0:00:05]} Bb4+ {[%emt 0:00:18]
} 4. Bd2 {[%emt 0:00:06][%cal Yc1d2,Yd2f4,Yf4c7]} Be7 {[%emt 0:00:05]} 5. Bg2 {
[%emt 0:00:18]} d5 {[%emt 0:00:12]} 6. Nf3 {[%emt 0:00:07]} Nbd7 {[%emt 0:00:
26]} 7. Qc2 {[%emt 0:01:16]} c6 {[%emt 0:00:21]} 8. O-O {[%emt 0:00:00]} O-O {
[%emt 0:00:31]} 9. Bf4 {[%emt 0:00:13]} b6 {[%emt 0:04:40] E11: Bogo-Indian.}
10. Nbd2 {[%emt 0:00:42]} Nh5 {[%emt 0:02:11]} 11. e3 {[%emt 0:00:00] is
recently more successful than 11.Be3.} Bb7 {[%emt 0:02:01]} 12. cxd5 {[%emt 0:
01:15]} cxd5 {[%emt 0:06:43]} 13. Bc7 {[%emt 0:02:10]} Qe8 {[%emt 0:00:00]} 14.
Rfc1 {[%emt 0:00:42] [#]} Nb8 $146 {[%emt 0:09:16]} ({Predecessor:} 14... Nhf6
15. Bf1 Nb8 16. Ne5 Na6 17. Qb3 Nxc7 18. Rxc7 Rb8 19. Rac1 Bd6 20. R7c2 Qe7 21.
Qa4 Ra8 22. Ba6 Bxa6 23. Qxa6 Bxe5 24. dxe5 Nd7 25. Nf3 Qb4 {½-½ (25) Ding,L
(2801)-Anand,V (2757) Kolkata 2019}) 15. Bf1 {[%emt 0:00:00][%cal Yg2f1,Yf1b5,
Yb5d3]} Na6 {[%emt 0:28:56]} 16. Qb3 {[%emt 0:07:44]} Nxc7 {[%emt 0:02:46]} 17.
Rxc7 {[%emt 0:01:44]} Bc8 {[%emt 0:00:07]} 18. Rac1 {[%emt 0:11:14]} Bd6 {
[%emt 0:00:51]} 19. Bb5 {[%emt 0:03:07] 0x0.0013ba75cadadp-1022s more active
pieces.} Qd8 {[%emt 0:00:10]} 20. R7c3 {[%emt 0:01:13]} Nf6 {[%emt 0:01:08]}
21. Qa4 {[%emt 0:17:55]} a6 {[%emt 0:00:00]} 22. Ne5 {[%emt 0:08:44]} Qe7 {
[%emt 0:05:59]} 23. a3 {[%emt 0:09:13]} h5 {[%emt 0:07:45]} 24. Bd3 {[%emt 0:
03:15]} Bb7 {[%emt 0:02:33]} 25. Qb3 {[%emt 0:00:00]} b5 {[%emt 0:02:39]} 26.
Nc6 {[%emt 0:00:34]} Bxc6 {[%emt 0:04:35]} 27. Rxc6 {[%emt 0:00:05]} g6 {
[%emt 0:00:49]} 28. Nf3 {[%emt 0:03:10]} Kg7 {[%emt 0:00:34]} 29. Qc2 {[%emt 0:
00:21]} Rfd8 {[%emt 0:03:52]} 30. Kg2 {[%emt 0:04:57]} Qb7 {[%emt 0:04:01]} 31.
Ne5 {[%emt 0:04:40][%cal Rd3g6] Strongly threatening Bxg6!} Ng4 {[%emt 0:01:42]
[#]} (31... Kg8 $14) 32. Nf3 $2 {[%emt 0:02:42]} (32. Bxg6 $1 $18 Nxe5 33. dxe5
Bxe5 34. Bxh5) 32... Qe7 {[%emt 0:01:35]} 33. h3 {[%emt 0:00:42]} Nf6 {[%emt 0:
01:00]} 34. Ne5 {[%emt 0:00:46][%cal Rd3g6]} Qe8 {[%emt 0:00:42]} 35. f4 {
[%emt 0:01:50]} Ng8 $1 {[%emt 0:00:58]} 36. Qf2 {[%emt 0:02:21]} Rac8 {[%emt 0:
01:25] ...Rxc6 is the strong threat.} 37. Rxc8 {[%emt 0:01:04] Weighted Error
Value: White=0.11 (very precise) /Black=0.10 (very precise)} *

[Event "44th Chess Olympiad Open 2022"]
[Site "Chennai"]
[Date "2022.08.03"]
[Round "6.9"]
[White "Georgiadis, Nico"]
[Black "Moussard, Jules"]
[Result "1/2-1/2"]
[WhiteElo "2578"]
[BlackElo "2672"]
[Annotator "TA"]
[PlyCount "82"]
[EventDate "2022.??.??"]
[TimeControl "60"]

{[%evp 17,82,8,11,8,15,12,22,12,12,8,10,13,17,7,12,5,31,31,31,31,31,27,33,39,
38,39,44,47,46,4,8,5,39,0,20,20,12,13,19,15,15,25,17,8,12,8,8,2,10,9,11,3,5,3,
2,2,2,0,0,0,0,0,0,0,0,0,186]} 1. e4 {[%emt 0:00:03]} c5 {[%emt 0:00:05]} 2. Nf3
{[%emt 0:00:06]} d6 {[%emt 0:00:13]} 3. d4 {[%emt 0:00:07]} cxd4 {[%emt 0:00:
00]} 4. Nxd4 {[%emt 0:00:06]} Nf6 {[%emt 0:00:06]} 5. Nc3 {[%emt 0:00:07]} a6 {
[%emt 0:00:09]} 6. Be3 {[%emt 0:00:07]} e5 {[%emt 0:00:41]} 7. Nf3 {[%emt 0:00:
00][%cal Yd4f3,Yf3h4,Yh4g6]} Be7 {[%emt 0:00:48]} 8. Bc4 {[%emt 0:00:00]} O-O {
[%emt 0:01:08]} 9. O-O {[%emt 0:00:13]} Nc6 {[%emt 0:00:40][%cal Yb8c6,Yc6a5,
Ya5b3]} 10. Bb3 {[%emt 0:00:51] B90: Sicilian Najdorf: Unusual White 6th moves,
6 Be3 Ng4 and 6 Be3 e5.} h6 {[%emt 0:00:14]} 11. Nh4 {[%emt 0:01:40]} Na5 {
[%emt 0:00:13]} 12. Ng6 {[%emt 0:00:41]} Nxb3 {[%emt 0:00:00]} 13. Bb6 {
[%emt 0:00:11] [#]} Qxb6 $146 {[%emt 0:03:33]} ({Predecessor:} 13... Qe8 14.
Nxe7+ Qxe7 15. axb3 Qd7 16. f3 Qc6 17. Bf2 Be6 18. Bh4 g5 19. Bg3 Nh5 {½-½ 
(50) Korneev,O (2637)-Gordievsky,D (2448) Khanty-Mansiysk 2013}) 14. Nxe7+ {
[%emt 0:00:18]} Kh8 {[%emt 0:03:27]} 15. Ned5 {[%emt 0:24:21]} Nxd5 {[%emt 0:
03:50]} 16. Nxd5 {[%emt 0:01:26]} Qd8 {[%emt 0:05:45]} 17. axb3 {[%emt 0:01:25]
} f5 {[%emt 0:00:49]} 18. exf5 {[%emt 0:02:52]} Bxf5 {[%emt 0:00:00]} 19. Qd2 {
[%emt 0:01:05]} Rc8 {[%emt 0:07:55]} 20. c3 {[%emt 0:06:19]} Be6 {[%emt 0:00:
31]} 21. b4 {[%emt 0:12:02] Against Rc5} Qh4 {[%emt 0:02:46]} 22. Rad1 {
[%emt 0:01:51]} Rf5 {[%emt 0:09:29]} 23. g3 {[%emt 0:16:37]} (23. f3 $5 {
[%cal Rd5e3]}) 23... Qh3 {[%emt 0:01:30] [#] And now ...Rh5 would win.} 24. Ne3
{[%emt 0:01:26][%csl Yd6,Yf5]} Rh5 {[%emt 0:09:12][%csl Gh5][%cal Rh3h2]} 25.
f4 {[%emt 0:06:44]} Bb3 {[%emt 0:05:20]} 26. Rde1 {[%emt 0:02:21] f5 is the
strong threat.} exf4 {[%emt 0:02:02]} 27. Rxf4 {[%emt 0:00:22]} Re8 {[%emt 0:
00:00]} 28. Ng4 {[%emt 0:05:28]} Rxe1+ {[%emt 0:04:00]} 29. Qxe1 {[%emt 0:00:
00] White wants to mate with Rf8+.} Bg8 $1 {[%emt 0:00:10]} (29... Bd5 {
is a self mate.} 30. Rf8+ Kh7 {[#]} 31. Nf6+ $1 Kg6 32. Qe8+ Kf5 33. Nxd5+ Kg5
34. Qe7+ Kg6 35. Qf7+ Kh7 36. Nf6#) 30. Qf1 {[%emt 0:12:14] The position is
equal.} Qxf1+ {[%emt 0:00:07]} 31. Kxf1 $11 {[%emt 0:00:29] Endgame KRB-KRN}
Be6 {[%emt 0:00:42]} 32. h4 {[%emt 0:00:41]} Kg8 {[%emt 0:08:23] Inhibits Rf8+.
} 33. Ne3 {[%emt 0:00:34]} Re5 {[%emt 0:00:14]} 34. Kf2 {[%emt 0:00:12]} g5 {
[%emt 0:00:59]} 35. hxg5 {[%emt 0:01:49]} hxg5 {[%emt 0:00:05]} 36. Rd4 {
[%emt 0:00:05]} d5 {[%emt 0:00:03]} 37. Rd1 {[%emt 0:00:00]} Kg7 {[%emt 0:00:
17]} 38. Kf3 {[%emt 0:00:41]} Kf6 {[%emt 0:00:47]} 39. Rd2 {[%emt 0:00:26]} Kg7
{[%emt 0:02:47]} 40. Rd4 {[%emt 0:00:19]} Kf6 {[%emt 0:00:11]} 41. Rd2 {
[%emt 0:09:47]} Re4 $2 {Weighted Error Value: White=0.04 (flawless) /Black=0.
04 (flawless)} (41... Kg7 $11) 1/2-1/2

[Event "44th Chess Olympiad Open 2022"]
[Site "Chennai"]
[Date "2022.08.03"]
[Round "6.9"]
[White "Pelletier, Yannick"]
[Black "Cornette, Matthieu"]
[Result "1/2-1/2"]
[WhiteElo "2551"]
[BlackElo "2551"]
[Annotator "TA"]
[PlyCount "66"]
[EventDate "2022.??.??"]
[TimeControl "60"]

{[%evp 25,66,8,21,17,22,6,9,13,13,12,10,15,12,0,0,0,0,0,0,0,0,0,0,0,0,0,0,0,0,
0,0,0,0,0,0,0,0,0,0,-9,0,0,0]} 1. d4 {[%emt 0:00:06]} Nf6 {[%emt 0:00:09]} 2.
c4 {[%emt 0:00:10]} e6 {[%emt 0:00:04]} 3. Nf3 {[%emt 0:00:10]} d5 {[%emt 0:00:
00]} 4. Nc3 {[%emt 0:00:30]} Bb4 {[%emt 0:00:11]} 5. Bg5 {[%emt 0:02:45]} h6 {
[%emt 0:00:10]} 6. Bxf6 {[%emt 0:00:05]} Qxf6 {[%emt 0:00:05]} 7. Qb3 {[%emt 0:
00:00]} c5 {[%emt 0:00:43]} 8. cxd5 {[%emt 0:00:29]} exd5 {[%emt 0:00:09]} 9.
e3 {[%emt 0:00:10]} O-O {[%emt 0:00:39]} 10. dxc5 {[%emt 0:00:38]} Bxc3+ {
[%emt 0:00:10]} 11. Qxc3 {[%emt 0:00:05]} Qxc3+ {[%emt 0:00:07]} 12. bxc3 {
[%emt 0:00:03]} Nd7 {[%emt 0:00:07]} 13. Rd1 {[%emt 0:02:01]} Nxc5 {[%emt 0:00:
00] The position is equal. 13...Nxc5 has lost popularity.} 14. Rxd5 {[%emt 0:
00:00] D38: Queen's Gambit Declined: Ragozin Defence (4 Nf3 Bb4).} b6 {[%emt 0:
00:00]} 15. Rd4 {[%emt 0:08:03]} Be6 {[%emt 0:01:35]} 16. c4 {[%emt 0:13:50]}
Rac8 {[%emt 0:00:39]} 17. Be2 {[%emt 0:04:45]} Rc7 {[%emt 0:15:45]} 18. Kd2 {
[%emt 0:06:29]} Rfc8 {[%emt 0:02:40]} 19. Rb1 {[%emt 0:02:38]} Nb7 {[%emt 0:00:
00][%cal Yc5b7,Yb7a5,Ya5c6]} 20. Kc3 {[%emt 0:05:54]} Na5 {[%emt 0:00:00][%cal
Ra5c4]} 21. Nd2 {[%emt 0:00:04]} Nc6 {[%emt 0:00:51]} 22. Rd6 {[%emt 0:01:16] 
[#]} Na5 $146 {[%emt 0:04:59]} ({Predecessor:} 22... Kf8 23. Rb5 Ke7 24. Rd3
Na5 25. Rd4 Nb7 26. Rb4 Nd6 27. a4 Nf5 28. Re4 Nd6 29. Rd4 Nf5 30. Re4 Nd6 31.
Rd4 Nf5 {½-½ (31) Voloshin,L (2426)-Gerzhoy,L (2257) Pardubice 2001}) 23. Rd4
{[%emt 0:00:37]} Nc6 {[%emt 0:00:05]} 24. Rd6 {[%emt 0:01:58]} Na5 {[%emt 0:04:
08]} 25. Rb4 {[%emt 0:01:58]} Kf8 {[%emt 0:02:56]} 26. Ra4 {[%emt 0:16:04]} Ke7
{[%emt 0:21:12]} 27. Rd4 {[%emt 0:00:03]} Nc6 {[%emt 0:00:00]} 28. Re4 {
[%emt 0:04:09]} f5 {[%emt 0:00:46] Against Bg4} 29. Rh4 {[%emt 0:00:00]} a5 {
[%emt 0:06:55][%cal Yb6b5]} 30. Kb2 {[%emt 0:13:12]} Ne5 {[%emt 0:00:00]} 31.
Rd4 {[%emt 0:01:22]} Nc6 {[%emt 0:00:44]} 32. Rh4 $1 {[%emt 0:00:00]} Ne5 {
[%emt 0:06:08]} 33. Rd4 {[%emt 0:00:06]} Nc6 {[%emt 0:00:36] A balanced but
interesting game. Weighted Error Value: White=0.01 (flawless) / Black=0.01 
(flawless)} 1/2-1/2

[Event "44th Chess Olympiad Open 2022"]
[Site "Chennai"]
[Date "2022.08.03"]
[Round "6.10"]
[White "Gupta, Abhijeet"]
[Black "Pultinevicius, Paulius"]
[Result "1-0"]
[WhiteElo "2627"]
[BlackElo "2539"]
[Annotator "TA"]
[PlyCount "87"]
[EventDate "2022.??.??"]
[TimeControl "60"]

{[%evp 18,87,12,6,18,29,25,17,20,18,22,12,16,6,42,0,0,0,0,0,68,56,69,52,75,54,
127,151,127,125,130,227,182,204,231,234,237,243,235,245,232,215,205,200,195,
189,195,177,214,166,264,258,402,372,422,404,892,885,852,885,885,882,986,986,
899,918,1106,1105,29990,29991,29991,29992]} 1. d4 {[%emt 0:00:12]} Nf6 {
[%emt 0:00:06]} 2. c4 {[%emt 0:00:07]} e6 {[%emt 0:00:04]} 3. Nc3 {[%emt 0:00:
00]} d5 {[%emt 0:00:15]} 4. cxd5 {[%emt 0:00:21]} exd5 {[%emt 0:00:05]} 5. Bg5
{[%emt 0:00:07]} c6 {[%emt 0:00:06]} 6. Qc2 {[%emt 0:03:19]} h6 {[%emt 0:00:13]
} 7. Bh4 {[%emt 0:00:50]} Be7 {[%emt 0:04:47]} 8. e3 {[%emt 0:01:00]} O-O {
[%emt 0:00:07]} 9. Bd3 {[%emt 0:00:24]} Re8 {[%emt 0:00:19]} 10. Nge2 {[%emt 0:
00:00]} a5 {[%emt 0:00:08] D36: Queen's Gambit Declined: Exchange Variation:
Main line (5 Bg5 c6 6 Qc2).} 11. O-O {[%emt 0:00:33]} Na6 {[%emt 0:00:05]} 12.
a3 {[%emt 0:00:05] Prevents Nb4.} Nc7 {[%emt 0:00:06] The position is equal.}
13. Rad1 $5 {[%emt 0:01:40] Leaves trodden paths.} Ne6 {[%emt 0:00:49]} 14. Kh1
{[%emt 0:06:53]} b5 {[%emt 0:03:48]} 15. f3 {[%emt 0:04:43] [#]} Ng5 $146 {
[%emt 0:19:23]} ({Predecessor:} 15... Ba6 16. Nb1 Qb6 17. b4 Bb7 18. Be1 axb4
19. axb4 Ra4 {1-0 (88) Zakhartsov,V (2496)-Goryachkina,A (2593) Sochi 2021})
16. Bxg5 {[%emt 0:12:58]} hxg5 {[%emt 0:00:06]} 17. e4 $1 {[%emt 0:00:05][%cal
Ye3e4,Ye4e5]} b4 {[%emt 0:17:12]} 18. Na4 {[%emt 0:00:16]} bxa3 {[%emt 0:06:32]
} (18... dxe4 $11 19. fxe4 Be6) 19. e5 $14 {[%emt 0:02:46]} (19. Qxc6 $6 Bd7
20. Qc2 axb2 $15) 19... Nh5 {[%emt 0:00:05]} 20. bxa3 $1 {[%emt 0:00:00]} (20.
Qxc6 $6 Bd7 21. Qc2 axb2 $11) 20... Bxa3 {[%emt 0:01:36]} 21. f4 $1 {[%emt 0:
05:52]} ({But not} 21. Qxc6 Bd7 22. Qc2 Bb4 $11) 21... Bg4 {[%emt 0:07:21]
White leaves nothing to chance now.} ({Black should play} 21... gxf4 $14 22.
Nxf4 Qh4 23. Nxh5 (23. Qxc6 Bg4 $11) 23... Qxh5) 22. Bh7+ $1 $16 {[%emt 0:05:
23][%cal Yd3h7,Yh7f5,Yf5g4]} Kh8 {[%emt 0:09:29] [#] ...g6 is the strong
threat.} 23. Bf5 {[%emt 0:02:10] White is more active.} Bxe2 {[%emt 0:04:03]}
24. Qxe2 {[%emt 0:00:06]} g6 {[%emt 0:00:20]} 25. Qf3 {[%emt 0:00:00] Black
must now prevent Bg4.} Bb4 {[%emt 0:05:52] [#]} 26. Bg4 $1 {[%emt 0:02:54]}
Nxf4 {[%emt 0:07:18]} 27. g3 {[%emt 0:00:37]} Ne6 {[%emt 0:00:00]} 28. Qxf7 {
[%emt 0:00:36]} Nf8 {[%emt 0:00:04]} 29. Qb7 {[%emt 0:02:33]} Re7 {[%emt 0:02:
00]} 30. Qxc6 {[%emt 0:02:30]} Rc7 {[%emt 0:00:07]} 31. Qb5 {[%emt 0:01:58]}
Rb8 {[%emt 0:00:05]} 32. Qa6 {[%emt 0:00:33]} Qe8 {[%emt 0:00:00]} 33. Qf6+ {
[%emt 0:01:06]} Kg8 {[%emt 0:01:20]} (33... Rg7 {was called for.}) 34. Nb6 $18
{[%emt 0:05:48]} Qb5 {[%emt 0:03:03]} (34... Qd8 $142 35. Be6+ Kh7) 35. Be6+ {
[%emt 0:00:30]} Kh7 {[%emt 0:00:06]} 36. Nxd5 {[%emt 0:01:28]} Qc6 {[%emt 0:03:
23]} (36... Qb7 $142 37. Kg1 Rc6 38. Qf7+ (38. Qxg5 Rxe6 39. Qh4+ Kg7 $11)
38... Qxf7 39. Rxf7+ Kh8) 37. Rc1 {[%emt 0:04:18]} Qxc1 {[%emt 0:00:00]} 38.
Rxc1 {[%emt 0:00:03]} Rxc1+ {[%emt 0:00:06]} 39. Kg2 {[%emt 0:00:00] Qf7+
would kill now.} Rb7 {[%emt 0:03:53] Prevents Qf7+.} 40. Qxg5 {[%emt 0:01:53]}
Rc2+ {[%emt 0:00:12]} 41. Kh3 {[%emt 0:30:05]} Nxe6 {[%emt 0:00:00]} 42. Qh4+ {
[%emt 0:00:11]} Kg8 {[%emt 0:00:09]} 43. Nf6+ {[%emt 0:00:13]} Kf7 {[%emt 0:00:
06]} 44. Qh7+ {[%emt 0:00:10] Skewer. Weighted Error Value: White=0.05 
(flawless) /Black=0.44} 1-0